fUSD/lending_fUSD_20240823
["ID","MTS","AMOUNT","RATE_DAILY","PERIOD"]
[335611899,1724383832723,-161.291145,0.00010989,2]
[335611900,1724383832732,-500.0,0.00010989,2]
[335611901,1724383832742,-500.0,0.00010989,2]
[335611902,1724383832752,-151.0,0.00010989,2]
[335611903,1724383832761,-151.0,0.00010989,2]
[335611904,1724383832771,-500.0,0.00010989,2]
[335611905,1724383832780,-500.0,0.00010989,2]
[335611906,1724383832789,-500.0,0.00010989,2]
[335611907,1724383832798,-500.0,0.00010989,2]
[335611908,1724383832807,-312.43995733,0.00010989,2]
[335611909,1724383832817,-151.0,0.00010989,2]
[335611910,1724383832826,-500.0,0.00010989,2]
[335611911,1724383832836,-151.0,0.00010989,2]
[335611912,1724383832844,-500.0,0.00010989,2]
[335611913,1724383832854,-500.0,0.00010989,2]
[335611914,1724383832863,-500.0,0.00010989,2]
[335611915,1724383832872,-459.239081,0.00010989,2]
[335611916,1724383832881,-459.239081,0.00010989,2]
[335611917,1724383832890,-154.493993,0.00010989,2]
[335611918,1724383832899,-950.41,0.00010989,2]
[335611919,1724383832908,-950.41,0.00010989,2]
[335611920,1724383832917,-950.41,0.00010989,2]
[335611921,1724383832925,-950.41,0.00010989,2]
[335611922,1724383832935,-950.41,0.00010989,2]
[335611923,1724383832944,-500.0,0.00010989,2]
[335611924,1724383832953,-500.0,0.00010989,2]
[335611925,1724383832962,-500.0,0.00010989,2]
[335611926,1724383832972,-500.0,0.00010989,2]
[335611927,1724383832981,-363.87246005,0.00010989,2]
[335611928,1724383832990,-500.0,0.00010989,2]
[335611929,1724383832999,-500.0,0.00010989,2]
[335611930,1724383833008,-500.0,0.00010989,2]
[335611931,1724383833017,-500.0,0.00010989,2]
[335611932,1724383833027,-500.0,0.00010989,2]
[335611933,1724383833036,-1671.67,0.00010989,2]
[335611934,1724383833044,-1671.67,0.00010989,2]
[335611935,1724383833054,-1671.67,0.00010989,2]
[335611936,1724383833063,-1671.67,0.00010989,2]
[335611937,1724383833072,-1671.67,0.00010989,2]
[335611938,1724383833081,-1671.67,0.00010989,2]
[335611939,1724383833091,-500.0,0.00010989,2]
[335611940,1724383833100,-500.0,0.00010989,2]
[335611941,1724383833109,-500.0,0.00010989,2]
[335611942,1724383833118,-500.0,0.00010989,2]
[335611943,1724383833128,-500.0,0.00010989,2]
[335611944,1724383833137,-500.0,0.00010989,2]
[335611945,1724383833146,-500.0,0.00010989,2]
[335611946,1724383833155,-500.0,0.00010989,2]
[335611947,1724383833165,-500.0,0.00010989,2]
[335611948,1724383833175,-500.0,0.00010989,2]
[335611949,1724383833184,-500.0,0.00010989,2]
[335611950,1724383833193,-500.0,0.00010989,2]
[335611951,1724383833202,-152.67,0.00010989,2]
[335611952,1724383833211,-500.0,0.00010989,2]
[335611953,1724383833222,-500.0,0.00010989,2]
[335611954,1724383833232,-252.56093595,0.00010989,2]
[335611955,1724383833241,-500.0,0.00010989,2]
[335611956,1724383833250,-500.0,0.00010989,2]
[335611957,1724383833259,-500.0,0.00010989,2]
[335611958,1724383833269,-500.0,0.00010989,2]
[335611959,1724383833278,-500.0,0.00010989,2]
[335611960,1724383833287,-151.0,0.00010989,2]
[335611961,1724383833298,-500.0,0.00010989,2]
[335611962,1724383833310,-953.48,0.00010989,2]
[335611963,1724383833319,-953.48,0.00010989,2]
[335611964,1724383833328,-953.48,0.00010989,2]
[335611965,1724383833339,-500.0,0.00010989,2]
[335611966,1724383833348,-953.48,0.00010989,2]
[335611967,1724383833357,-953.48,0.00010989,2]
[335611968,1724383833367,-500.0,0.00010989,2]
[335611969,1724383833377,-953.48,0.00010989,2]
[335611970,1724383833386,-500.0,0.00010989,2]
[335611971,1724383833395,-500.0,0.00010989,2]
[335611972,1724383833404,-500.0,0.00010989,2]
[335611973,1724383833414,-500.0,0.00010989,2]
[335611974,1724383833423,-500.0,0.00010989,2]
[335611975,1724383833433,-500.0,0.00010989,2]
[335611976,1724383833442,-500.0,0.00010989,2]
[335611977,1724383833452,-500.0,0.00010989,2]
[335611978,1724383833461,-500.0,0.00010989,2]
[335611979,1724383833474,-500.0,0.00010989,2]
[335611980,1724383833483,-151.0,0.00010989,2]
[335611981,1724383833493,-409.1445957,0.00010989,2]
[335611982,1724383833502,-500.0,0.00010989,2]
[335611983,1724383833511,-560.86850806,0.00010989,2]
[335611984,1724383833520,-701.76443286,0.00010989,2]
[335611985,1724383833530,-500.0,0.00010989,2]
[335611986,1724383833539,-150763.75223079,0.0001099,4]
[335611987,1724383833556,-348.95169709,0.0001099,4]
[335611988,1724383833568,-285.0,0.0001099,4]
[335612309,1724383845955,-255.3790645,0.00010566,2]
[335612320,1724383874959,439.97,9.99e-05,2]
[335612321,1724383974817,204.79,9.99e-05,2]
[335612322,1724384072902,1276.46550139,0.00010009,2]
[335612323,1724384126761,340.17,8.219e-05,2]
[335612324,1724384137892,279.11,9.99e-05,2]
[335612325,1724384151142,688.44,0.0001,2]
[335612326,1724384204098,500.0,9.99e-05,2]
[335612327,1724384205236,500.0,9.99e-05,2]
[335612330,1724384320747,216.78,9.978e-05,2]
[335612347,1724384532350,219.0,0.0001,2]
[335612350,1724384568487,897.73661835,0.00027,120]
[335612352,1724384627572,449.24,9.969e-05,2]
[335612353,1724384638825,323.16,8.219e-05,2]
[335612370,1724384935182,356.64,9.949e-05,2]
[335612371,1724384942472,186.52035697,9.962e-05,2]
[335612384,1724384979188,5413.97836727,0.00010009,2]
[335612385,1724385000018,232.0,9.98e-05,2]
[335612386,1724385000345,232.0,9.86e-05,2]
[335612387,1724385000675,232.0,9.73e-05,2]
[335612396,1724385031830,-794.0,0.00010011,2]
[335612397,1724385031840,-349.08709593,0.00010026,2]
[335612398,1724385031849,-314.8269567,0.00010026,2]
[335612399,1724385031858,-155.67049414,0.00010026,2]
[335612400,1724385031867,-155.0,0.00010097,2]
[335612401,1724385031877,-17.22263666,0.0001011,2]
[335612402,1724385031888,-214.77736334,0.0001011,2]
[335612403,1724385031897,-49.27932613,0.0001023,2]
[335612404,1724385031908,-182.72067387,0.0001023,2]
[335612405,1724385031917,-232.0,0.0001036,2]
[335612406,1724385031926,-778.48877523,0.00010471,2]
[335612407,1724385031948,-709.08388705,0.00010471,2]
[335612408,1724385031957,-323.16,0.00010474,2]
[335612409,1724385031967,-232.0,0.0001048,2]
[335612410,1724385031978,-794.0,0.00010481,2]
[335612411,1724385031987,-13.02704161,0.0001061,2]
[335612412,1724385031999,-218.97295839,0.0001061,2]
[335612413,1724385032009,-759.15881768,0.00010713,2]
[335612414,1724385032020,-232.0,0.0001073,2]
[335612415,1724385032030,-300.0,0.00010799,2]
[335612416,1724385032040,-768.61937688,0.000108,2]
[335612417,1724385032050,-150.0,0.000108,2]
[335612418,1724385032059,-499.99,0.000108,2]
[335612419,1724385032068,-2500.0,0.0001085,2]
[335612420,1724385032077,-232.0,0.0001086,2]
[335612421,1724385032087,-4123.38726423,0.0001088,2]
[335612422,1724385032106,-876.61273577,0.0001088,2]
[335612423,1724385032115,-416.66666,0.0001088,2]
[335612424,1724385032124,-1576.35014912,0.00010888,2]
[335612425,1724385032133,-13.9748596,0.00010889,2]
[335612426,1724385037812,-1169.14743839,0.00010889,2]
[335612427,1724385037872,-3546.14313676,0.00010889,2]
[335612428,1724385037881,-387.93855348,0.0001089,2]
[335612429,1724385037890,-264.22,0.0001089,2]
[335612430,1724385037899,-40.23995436,0.00010895,2]
[335612431,1724385038146,-347.69859911,0.00010895,2]
[335612432,1724385038155,-150.0,0.00010899,2]
[335612433,1724385038164,-856.5,0.000109,2]
[335612434,1724385038173,-268.06,0.000109,2]
[335612435,1724385038183,-1195.71,0.000109,2]
[335612436,1724385038192,-716.02,0.000109,2]
[335612437,1724385038201,-300.98,0.000109,2]
[335612438,1724385038210,-167.86,0.000109,2]
[335612439,1724385038219,-300.83,0.000109,2]
[335612440,1724385038228,-150.0,0.000109,2]
[335612441,1724385038238,-150.0,0.000109,2]
[335612442,1724385038246,-387.93855347,0.000109,2]
[335612443,1724385038258,-500.0,0.00010949,2]
[335612445,1724385038267,-95096.35292198,0.0001095,2]
[335612585,1724385040062,-661.0,0.0001095,2]
[335612609,1724385040286,-19375.68017879,0.0001095,2]
[335612882,1724385042934,-1498.74229763,0.0001095,2]
[335612940,1724385043653,-1302.72971934,0.0001095,2]
[335613007,1724385212515,315.62,8.219e-05,2]
[335613008,1724385345417,279.56380374,9.962e-05,2]
[335613009,1724385372784,1286.10280632,9.962e-05,2]
[335613018,1724385607290,359.4,9.977e-05,2]
[335613028,1724385886078,299.83,8.219e-05,2]
[335613034,1724386018235,295.20003038,9.962e-05,2]
[335613063,1724386054878,216.78,9.949e-05,2]
[335613064,1724386061348,1276.46550139,0.00010009,2]
[335613066,1724386098906,712.48,9.953e-05,2]
[335613072,1724386150163,236.82544287,0.00010009,2]
[335613074,1724386159242,603.13022988,0.00010009,2]
[335613075,1724386174698,164.71703924,0.00010009,2]
[335613076,1724386201276,203.42899612,0.00010009,2]
[335613077,1724386213510,366.52431587,0.00010009,2]
[335613078,1724386223334,155.30432901,0.00010009,2]
[335613079,1724386226568,160.22974672,0.00010009,2]
[335613080,1724386227325,357.4813523,0.00010009,2]
[335613081,1724386227378,381.85635721,0.00010009,2]
[335613086,1724386231989,-300.0,0.00010017,2]
[335613087,1724386231999,-300.0,0.00010017,2]
[335613088,1724386232009,-1455.13960745,0.00010018,2]
[335613089,1724386232021,-641.02,0.00010018,2]
[335613090,1724386232097,-404.0,0.00010018,2]
[335613091,1724386232108,-8394.40862263,0.00010018,2]
[335613092,1724386232204,-300.0,0.00010018,2]
[335613093,1724386232216,-997.00916121,0.00010018,2]
[335613094,1724386232227,-712.8352503,0.00010018,2]
[335613099,1724386238264,-32602.90077581,0.00010018,2]
[335613100,1724386238274,-178.33,0.00010018,2]
[335613101,1724386238283,-155.24508963,0.00010026,2]
[335613102,1724386238293,-167.62235065,0.00010026,2]
[335613103,1724386238302,-155.0,0.00010026,2]
[335613104,1724386238311,-155.20691994,0.00010026,2]
[335613105,1724386238320,-150.0,0.00010096,2]
[335613106,1724386238329,-529.27299633,0.00010471,2]
[335613107,1724386238338,-299.83,0.00010473,2]
[335613108,1724386238347,-432.5166998,0.00010713,2]
[335613109,1724386238357,-2091.66141499,0.00010713,2]
[335613110,1724386238366,-347.22222,0.0001084,2]
[335613111,1724386238375,-499.99,0.0001084,2]
[335613112,1724386238384,-1688.4594,0.0001085,2]
[335613113,1724386238394,-1029.39,0.00010862,2]
[335613114,1724386238403,-1084.404,0.00010888,2]
[335613115,1724386238412,-531.48,0.000109,2]
[335613116,1724386238421,-150.0,0.000109,2]
[335613117,1724386238430,-647.9,0.000109,2]
[335613118,1724386238439,-850.01,0.000109,2]
[335613120,1724386238448,-250000.0,0.0001095,2]
[335613122,1724386238458,-415.05040182,0.00010958,2]
[335613124,1724386238467,-500.0,0.00010958,2]
[335613126,1724386238476,-316.75,0.00010959,2]
[335613128,1724386238485,-150.6,0.00010959,2]
[335613130,1724386238495,-250.0,0.00010959,2]
[335613132,1724386238504,-347.2747319,0.00010983,2]
[335613134,1724386238514,-1538.4712103,0.00010983,2]
[335613136,1724386238523,-3196.2665406,0.00010983,2]
[335613138,1724386238532,-500.0,0.00010988,2]
[335613140,1724386238542,-1253.75,0.00010988,2]
[335613142,1724386238551,-546.4965145,0.00010988,2]
[335613144,1724386238560,-500.0,0.00010988,2]
[335613146,1724386238570,-715.11,0.00010988,2]
[335613148,1724386238579,-500.0,0.00010988,2]
[335613150,1724386238588,-561.72539594,0.00010988,2]
[335613152,1724386238598,-500.0,0.00010988,2]
[335613154,1724386238607,-500.0,0.00010988,2]
[335613156,1724386238617,-500.0,0.00010988,2]
[335613158,1724386238627,-361.54402712,0.00010989,2]
[335613161,1724386238636,-500.0,0.00010989,2]
[335613163,1724386238646,-500.0,0.00010989,2]
[335613165,1724386238655,-500.0,0.00010989,2]
[335613167,1724386238665,-201.51213522,0.00010989,2]
[335613169,1724386238675,-500.0,0.00010989,2]
[335613171,1724386238684,-500.0,0.00010989,2]
[335613173,1724386238694,-500.0,0.00010989,2]
[335613175,1724386238703,-500.0,0.00010989,2]
[335613177,1724386238713,-500.0,0.00010989,2]
[335613179,1724386238722,-500.0,0.00010989,2]
[335613181,1724386238732,-500.0,0.00010989,2]
[335613183,1724386238741,-500.0,0.00010989,2]
[335613185,1724386238751,-500.0,0.00010989,2]
[335613187,1724386238760,-500.0,0.00010989,2]
[335613189,1724386238770,-494.55243794,0.00010989,2]
[335613191,1724386238779,-752.4,0.00010989,2]
[335613193,1724386238789,-752.4,0.00010989,2]
[335613195,1724386238799,-752.4,0.00010989,2]
[335613197,1724386238809,-752.4,0.00010989,2]
[335613199,1724386238818,-752.4,0.00010989,2]
[335613201,1724386238827,-500.0,0.00010989,2]
[335613202,1724386238837,-500.0,0.00010989,2]
[335613204,1724386238846,-500.0,0.00010989,2]
[335613206,1724386238856,-500.0,0.00010989,2]
[335613208,1724386238865,-500.0,0.00010989,2]
[335613210,1724386238875,-500.0,0.00010989,2]
[335613212,1724386238884,-500.0,0.00010989,2]
[335613214,1724386238894,-500.0,0.00010989,2]
[335613216,1724386238903,-500.0,0.00010989,2]
[335613218,1724386238913,-1253.75,0.00010989,2]
[335613220,1724386238922,-1253.75,0.00010989,2]
[335613222,1724386238931,-1253.75,0.00010989,2]
[335613224,1724386238941,-1253.75,0.00010989,2]
[335613226,1724386238950,-500.0,0.00010989,2]
[335613228,1724386238959,-500.0,0.00010989,2]
[335613230,1724386238969,-500.0,0.00010989,2]
[335613232,1724386238979,-500.0,0.00010989,2]
[335613234,1724386238988,-715.11,0.00010989,2]
[335613236,1724386238997,-715.11,0.00010989,2]
[335613238,1724386239006,-715.11,0.00010989,2]
[335613240,1724386239017,-715.11,0.00010989,2]
[335613242,1724386239026,-500.0,0.00010989,2]
[335613244,1724386239035,-516.51911483,0.00010989,2]
[335613246,1724386239044,-500.0,0.00010989,2]
[335613248,1724386239054,-500.0,0.00010989,2]
[335613249,1724386239063,-500.0,0.00010989,2]
[335613251,1724386239073,-638.16254175,0.00010989,2]
[335613254,1724386239083,-500.0,0.00010989,2]
[335613255,1724386239095,-500.0,0.00010989,2]
[335613257,1724386239104,-500.0,0.00010989,2]
[335613259,1724386239114,-500.0,0.00010989,2]
[335613261,1724386239123,-500.0,0.00010989,2]
[335613263,1724386239133,-500.0,0.00010989,2]
[335613265,1724386239143,-500.0,0.00010989,2]
[335613267,1724386239152,-479.16,0.00010989,2]
[335613269,1724386239163,-1000.0,0.00010989,2]
[335613271,1724386239172,-1000.0,0.00010989,2]
[335613273,1724386239182,-1000.0,0.00010989,2]
[335613275,1724386239190,-1000.0,0.00010989,2]
[335613277,1724386239199,-1000.0,0.00010989,2]
[335613279,1724386239208,-1000.0,0.00010989,2]
[335613281,1724386239217,-1000.0,0.00010989,2]
[335613283,1724386239227,-1000.0,0.00010989,2]
[335613284,1724386239236,-1000.0,0.00010989,2]
[335613286,1724386239244,-1000.0,0.00010989,2]
[335613288,1724386239254,-563884.15330167,0.0001099,4]
[335613291,1724386239272,-332.98204402,0.0001099,4]
[335613369,1724386240230,-351.36632347,0.00010799,2]
[335613371,1724386240239,-861.96095733,0.0001099,4]
[335613666,1724386246046,-5872.54838408,0.0001099,4]
[335613667,1724386251833,155.0,0.00010009,2]
[335613668,1724386255827,400.0,9.9e-05,3]
[335613669,1724386257937,900.0,0.0001,3]
[335613673,1724386375283,500.0,8.275e-05,2]
[335613674,1724386382291,321.23,8.219e-05,2]
[335613675,1724386393102,1306.27,9.961e-05,2]
[335613679,1724386417514,500.0,8.275e-05,2]
[335613680,1724386420505,181.78476042,0.0001,2]
[335613681,1724386422016,10000.0,0.00027,120]
[335613682,1724386426493,10997.81,9.939e-05,2]
[335613683,1724386427568,207.04,9.939e-05,2]
[335613684,1724386443577,312.34,9.944e-05,2]
[335613685,1724386456878,183.0,0.00027,120]
[335613686,1724386465580,187.4,9.925e-05,2]
[335613687,1724386470800,500.0,9.924e-05,2]
[335613688,1724386507860,3940.15,9.909e-05,2]
[335613689,1724386517420,23900.0,9.908e-05,2]
[335613690,1724386538056,364.33,9.897e-05,2]
[335613691,1724386616367,2500.0,0.0001,2]
[335613692,1724386629498,430.01,9.871e-05,2]
[335613693,1724386674841,875.16,9.844e-05,2]
[335613696,1724386708864,250.0,9.848e-05,2]
[335613700,1724386864436,864.15,9.823e-05,2]
[335613701,1724386879337,330.86,8.219e-05,2]
[335613703,1724387002950,200.0,9.811e-05,2]
[335613704,1724387021784,150.0,0.000121,30]
[335613705,1724387029602,180.89,9.826e-05,2]
[335613706,1724387063668,207.04,9.804e-05,2]
[335613708,1724387124580,655.99,9.789e-05,2]
[335613714,1724387219331,155.0,0.00010009,2]
[335613715,1724387234900,1276.46550139,0.00010009,2]
[335613752,1724387248565,300.0,9.9e-05,3]
[335613753,1724387250654,700.0,0.0001,3]
[335613754,1724387281984,1326.5448396,0.0001,2]
[335613758,1724387375493,318.07266865,0.00010009,2]
[335613781,1724387432469,-765.35135299,0.00010026,2]
[335613823,1724387438320,-1472.42110933,0.00010026,2]
[335613824,1724387438432,-2324.62033284,0.00010026,2]
[335613825,1724387438441,-526.38720447,0.00010097,2]
[335613826,1724387438451,-275.70718727,0.00010097,2]
[335613827,1724387438464,-660.97560103,0.00010097,2]
[335613828,1724387438473,-256.14758321,0.00010097,2]
[335613829,1724387438482,-507.85865847,0.00010097,2]
[335613830,1724387438491,-1100.0,0.000101,3]
[335613831,1724387438502,-172.2,0.00010147,2]
[335613832,1724387438511,-1500.0,0.000102,3]
[335613833,1724387438521,-1900.0,0.000103,3]
[335613834,1724387438530,-150.0,0.000104,2]
[335613835,1724387438540,-150.0,0.000104,2]
[335613836,1724387438549,-837.6,0.000104,2]
[335613837,1724387438559,-300.0,0.000104,3]
[335613838,1724387438568,-426.12,0.000104,2]
[335613839,1724387438577,-330.86,0.00010468,2]
[335613840,1724387438586,-155.0,0.00010471,2]
[335613841,1724387438595,-459.38528762,0.00010471,2]
[335613842,1724387438605,-297.94,0.00010471,2]
[335613843,1724387438614,-300.0,0.000105,3]
[335613844,1724387438623,-212.52903208,0.00010505,2]
[335613845,1724387438633,-155.41013361,0.00010505,2]
[335613846,1724387438642,-223.08654922,0.00010505,2]
[335613847,1724387438651,-300.0,0.000106,3]
[335613849,1724387438660,-426.87,0.000106,2]
[335613851,1724387438669,-386.76523522,0.00010699,2]
[335613852,1724387438678,-155.26978472,0.00010699,2]
[335613855,1724387438688,-426.87,0.000107,2]
[335613857,1724387438697,-426.87,0.000107,2]
[335613859,1724387438706,-426.87,0.000107,2]
[335613861,1724387438715,-300.0,0.000107,3]
[335613863,1724387438724,-1513.96860539,0.00010751,2]
[335613865,1724387438733,-155.0,0.00010799,2]
[335613866,1724387438742,-1200.0,0.000108,3]
[335613868,1724387438751,-166.0293148,0.000108,2]
[335613870,1724387438760,-182.95715537,0.00010802,2]
[335613872,1724387438769,-215.3767,0.0001085,2]
[335613873,1724387438779,-150.0,0.00010858,2]
[335613875,1724387438789,-5278.7746,0.00010877,2]
[335613877,1724387438798,-759.88944,0.0001088,2]
[335613879,1724387438807,-174.17931963,0.0001089,2]
[335613881,1724387438817,-211.0427179,0.0001089,2]
[335613883,1724387438826,-2448.1662,0.0001089,2]
[335613885,1724387438835,-9550.6013,0.0001089,2]
[335613887,1724387438846,-45705.9531,0.0001089,2]
[335613889,1724387438855,-1000.0,0.0001089,2]
[335613891,1724387438864,-7102.4372,0.0001089,2]
[335613893,1724387438873,-1966.88145364,0.0001089,2]
[335613895,1724387438883,-960.12211496,0.00010899,2]
[335613896,1724387438892,-960.12211493,0.00010899,2]
[335613898,1724387438901,-960.12211493,0.00010899,2]
[335613900,1724387438912,-960.12211493,0.00010899,2]
[335613902,1724387438921,-960.12211493,0.00010899,2]
[335613904,1724387438930,-960.12211493,0.00010899,2]
[335613906,1724387438939,-960.12211493,0.00010899,2]
[335613908,1724387438952,-960.12211493,0.00010899,2]
[335613910,1724387438962,-960.12211493,0.00010899,2]
[335613912,1724387438972,-960.12211493,0.000109,2]
[335613914,1724387438981,-969.0,0.000109,2]
[335613916,1724387438990,-1000.0,0.000109,2]
[335613918,1724387438999,-1000.0,0.000109,2]
[335613920,1724387439008,-1000.0,0.000109,2]
[335613922,1724387439017,-310.0828856,0.000109,2]
[335613924,1724387439026,-1001.0,0.000109,2]
[335613926,1724387439038,-161.0061516,0.000109,2]
[335613928,1724387439050,-161.00615155,0.000109,2]
[335613930,1724387439059,-161.00615155,0.000109,2]
[335613932,1724387439069,-161.00615155,0.000109,2]
[335613933,1724387439077,-161.00615155,0.000109,2]
[335613935,1724387439088,-161.00615155,0.000109,2]
[335613937,1724387439097,-161.00615155,0.000109,2]
[335613939,1724387439106,-161.00615155,0.000109,2]
[335613941,1724387439115,-215.81690326,0.000109,2]
[335613943,1724387439124,-250000.0,0.0001095,2]
[335613945,1724387439134,-191954.65012064,0.0001095,2]
[335613947,1724387439143,-226.2533567,0.00010958,2]
[335613949,1724387439152,-500.0,0.00010958,2]
[335613951,1724387439161,-500.0,0.00010958,2]
[335613953,1724387439170,-500.0,0.00010958,2]
[335613955,1724387439180,-504.74119879,0.00010958,2]
[335613956,1724387439190,-500.0,0.00010958,2]
[335613958,1724387439199,-500.37965347,0.00010958,2]
[335613960,1724387439208,-500.0,0.00010958,2]
[335613962,1724387439217,-595.65,0.00010958,2]
[335613964,1724387439227,-595.65,0.00010958,2]
[335613966,1724387439236,-511.70505796,0.00010958,2]
[335613968,1724387439245,-500.0,0.00010958,2]
[335613970,1724387439255,-500.0,0.00010958,2]
[335613972,1724387439264,-514.7792538,0.00010958,2]
[335613974,1724387439273,-992.55,0.00010958,2]
[335613975,1724387439283,-992.55,0.00010958,2]
[335613977,1724387439293,-513.82312631,0.00010958,2]
[335613979,1724387439302,-500.0,0.00010958,2]
[335613981,1724387439311,-500.0,0.00010958,2]
[335613983,1724387439321,-566.12,0.00010958,2]
[335613985,1724387439330,-566.12,0.00010958,2]
[335613987,1724387439340,-500.0,0.00010958,2]
[335613989,1724387439351,-500.0,0.00010958,2]
[335613991,1724387439360,-250.0,0.00010959,2]
[335613993,1724387439369,-150.0,0.00010959,2]
[335613995,1724387439378,-300.91,0.00010959,2]
[335613997,1724387439387,-168.094,0.00010966,2]
[335613998,1724387439397,-317.40156115,0.00010983,2]
[335614001,1724387439410,-1117.92172209,0.00010983,2]
[335614095,1724387446583,-350.60174226,0.00010858,2]
[335614096,1724387446592,-564.53168368,0.000109,2]
[335614097,1724387455647,297.77,8.279e-05,2]
[335614098,1724387466422,300.0,9.9e-05,3]
[335614099,1724387468607,600.0,0.0001,3]
[335614100,1724387487613,357.58189752,8.275e-05,2]
[335614101,1724387504788,553.25905353,8.275e-05,2]
[335614102,1724387505121,500.0,8.275e-05,2]
[335614105,1724387577204,180.9,9.962e-05,2]
[335614106,1724387646281,424.8168,0.0001,2]
[335614108,1724387738755,250.0,9.959e-05,2]
[335614111,1724387759686,1357.28,9.943e-05,2]
[335614113,1724387794965,155.0,0.00010009,2]
[335614115,1724387836473,2583.2377,0.0001,2]
[335614116,1724387872941,-298.78217594,0.000101,2]
[335614117,1724387872965,-900.0,0.000101,3]
[335614118,1724387872987,-1200.0,0.000102,3]
[335614119,1724387873009,-1500.0,0.000103,3]
[335614120,1724387873031,-300.0,0.000104,3]
[335614121,1724387873052,-8861.90162406,0.00010438,2]
[335614122,1724387877106,-1138.09837594,0.00010438,2]
[335614123,1724387877128,-10000.0,0.00010438,2]
[335614124,1724387877150,-300.0,0.000105,3]
[335614125,1724387877174,-297.77,0.00010543,2]
[335614126,1724387877196,-300.0,0.000106,3]
[335614127,1724387877218,-300.0,0.000107,3]
[335614128,1724387877239,-151.01899357,0.00010763,2]
[335614129,1724387877261,-400.0,0.000108,3]
[335614130,1724387877283,-7113.11263049,0.000108,2]
[335614131,1724387877615,-6874.07929985,0.00010438,2]
[335614132,1724387877637,-13125.92070015,0.000108,2]
[335614133,1724387878164,-20000.0,0.000108,2]
[335614134,1724387878666,-20000.0,0.000108,2]
[335614135,1724387879137,-20000.0,0.000108,2]
[335614137,1724387959742,316.15,8.219e-05,2]
[335614138,1724388048340,3700.0,0.00027,120]
[335614140,1724388167900,1089.39,9.968e-05,2]
[335614141,1724388196212,327.64,9.968e-05,2]
[335614142,1724388200534,2371.7,9.968e-05,2]
[335614143,1724388217108,250.0,9.964e-05,2]
[335614144,1724388223406,183.1,9.964e-05,2]
[335614145,1724388264679,167.68,9.961e-05,2]
[335614148,1724388319956,537.12442825,0.00010009,2]
[335614198,1724388484759,1045.57,9.954e-05,2]
[335614203,1724388551762,300.34,8.219e-05,2]
[335614204,1724388595331,1000.0,9.947e-05,2]
[335614213,1724388631714,-5.903e-05,0.00010049,2]
[335614218,1724388637355,-172.61994097,0.00010049,2]
[335614219,1724388637364,-2200.0,0.000101,2]
[335614220,1724388637373,-300.34,0.00010473,2]
[335614221,1724388637382,-227.04005903,0.00010505,2]
[335614222,1724388637396,-1086.35924764,0.00010505,2]
[335614223,1724388637406,-317.83263758,0.00010699,2]
[335614224,1724388637415,-867.9375,0.000107,2]
[335614225,1724388637424,-300.0,0.00010799,2]
[335614226,1724388637433,-976.33621649,0.00010799,2]
[335614227,1724388637443,-2257.56125643,0.000108,2]
[335614228,1724388637455,-2352.30715052,0.000108,2]
[335614229,1724388637464,-951.3390707,0.00010852,2]